[Event "*** Titled Tuesday Blitz"]
[Site "Chess.com"]
[Date "2021.03.30"]
[Round "4"]
[White "Kale36"]
[Black "Bhagya_2312"]
[Result "1-0"]
[WhiteElo "2391"]
[BlackElo "2162"]
[TimeControl "180+1"]
[EndTime "10:40:15 PDT"]
[Termination "Kale36 won on time"]

1. b3 {[%clk 0:03:00.9]} 1... d5 {[%clk 0:02:58.9]} 2. Bb2 {[%clk 0:03:01.2]}
2... c6 {[%clk 0:02:56.9]} 3. e3 {[%clk 0:03:01.2]} 3... Bf5 {[%clk 0:02:56.1]}
4. Nf3 {[%clk 0:03:01.5]} 4... Nd7 {[%clk 0:02:55.8]} 5. d4 {[%clk 0:03:02]}
5... e6 {[%clk 0:02:53.2]} 6. Bd3 {[%clk 0:03:02.4]} 6... Bxd3 {[%clk
0:02:49.6]} 7. cxd3 {[%clk 0:03:03.3]} 7... Bd6 {[%clk 0:02:41.1]} 8. O-O {[%clk
0:03:04.2]} 8... Ne7 {[%clk 0:02:20.9]} 9. Nbd2 {[%clk 0:03:05.1]} 9... O-O
{[%clk 0:02:19.1]} 10. Ne5 {[%clk 0:03:05]} 10... f6 {[%clk 0:02:10.5]} 11. Nxd7
{[%clk 0:02:58.1]} 11... Qxd7 {[%clk 0:02:10.6]} 12. e4 {[%clk 0:02:53.6]} 12...
e5 {[%clk 0:01:48.1]} 13. dxe5 {[%clk 0:02:51.4]} 13... fxe5 {[%clk 0:01:47.1]}
14. d4 {[%clk 0:02:40.3]} 14... exd4 {[%clk 0:01:40.6]} 15. exd5 {[%clk
0:02:32.2]} 15... Nxd5 {[%clk 0:01:39.9]} 16. Bxd4 {[%clk 0:02:30.1]} 16... Qf5
{[%clk 0:01:28.7]} 17. Nc4 {[%clk 0:02:17.4]} 17... Rad8 {[%clk 0:01:12.4]} 18.
Nxd6 {[%clk 0:02:14.5]} 18... Rxd6 {[%clk 0:01:09.3]} 19. Bc5 {[%clk 0:01:46.3]}
19... Rg6 {[%clk 0:01:01.3]} 20. Bxf8 {[%clk 0:01:43.9]} 20... Qh3 {[%clk
0:00:41.8]} 21. g3 {[%clk 0:01:29.4]} 21... Rh6 {[%clk 0:00:41.6]} 22. Re1
{[%clk 0:01:12.7]} 22... Qxh2+ {[%clk 0:00:41.1]} 23. Kf1 {[%clk 0:01:13]} 23...
Qh1+ {[%clk 0:00:41]} 24. Ke2 {[%clk 0:01:13.3]} 24... Qe4+ {[%clk 0:00:37.3]}
25. Kd2 {[%clk 0:01:08.9]} 25... Qd4+ {[%clk 0:00:37.4]} 26. Kc2 {[%clk
0:00:49.6]} 26... Qc3+ {[%clk 0:00:35.5]} 27. Kb1 {[%clk 0:00:49.1]} 27... Kxf8
{[%clk 0:00:31.6]} 28. Qc1 {[%clk 0:00:39.6]} 28... Qd4 {[%clk 0:00:26.1]} 29.
Qc4 {[%clk 0:00:30]} 29... Nc3+ {[%clk 0:00:20.6]} 30. Kc2 {[%clk 0:00:25.6]}
30... Qxc4 {[%clk 0:00:13.7]} 31. bxc4 {[%clk 0:00:25]} 31... Na4 {[%clk
0:00:13.6]} 32. Kb3 {[%clk 0:00:24.7]} 32... Nc5+ {[%clk 0:00:13]} 33. Kc2
{[%clk 0:00:24.8]} 33... Rf6 {[%clk 0:00:12.1]} 34. f4 {[%clk 0:00:24]} 34...
Rg6 {[%clk 0:00:11.3]} 35. Re3 {[%clk 0:00:23]} 35... Rh6 {[%clk 0:00:11.3]} 36.
Rd1 {[%clk 0:00:22.6]} 36... Kf7 {[%clk 0:00:09.1]} 37. Rd2 {[%clk 0:00:20.1]}
37... Rh1 {[%clk 0:00:07]} 38. Kc3 {[%clk 0:00:19.9]} 38... Rc1+ {[%clk
0:00:05.2]} 39. Kd4 {[%clk 0:00:19.1]} 39... b6 {[%clk 0:00:05.3]} 40. f5 {[%clk
0:00:15.3]} 40... Rf1 {[%clk 0:00:03.3]} 41. g4 {[%clk 0:00:15]} 41... Rf4+
{[%clk 0:00:03.1]} 42. Kc3 {[%clk 0:00:14.4]} 42... Ne4+ {[%clk 0:00:03]} 43.
Rxe4 {[%clk 0:00:11.2]} 43... Rxe4 {[%clk 0:00:02.8]} 44. Rd7+ {[%clk
0:00:10.7]} 44... Kf6 {[%clk 0:00:02.3]} 45. g5+ {[%clk 0:00:09.8]} 45... Kxf5
{[%clk 0:00:01.8]} 46. Rxg7 {[%clk 0:00:09.8]} 46... Rg4 {[%clk 0:00:02]} 47.
Rxa7 {[%clk 0:00:08]} 47... Rxg5 {[%clk 0:00:02.2]} 48. Rxh7 {[%clk 0:00:07.9]}
48... Ke4 {[%clk 0:00:02.5]} 49. Rd7 {[%clk 0:00:07.6]} 49... Rg3+ {[%clk
0:00:02.3]} 50. Kb4 {[%clk 0:00:07.2]} 50... Rg2 {[%clk 0:00:01.9]} 51. a4
{[%clk 0:00:07]} 51... Rb2+ {[%clk 0:00:01.9]} 52. Kc3 {[%clk 0:00:06.3]} 52...
Rb1 {[%clk 0:00:02.8]} 53. Re7+ {[%clk 0:00:06.7]} 53... Kf5 {[%clk 0:00:02]}
54. Rc7 {[%clk 0:00:07.3]} 54... Ke5 {[%clk 0:00:01.5]} 55. Rxc6 {[%clk
0:00:07.3]} 1-0

[Event "*** Titled Tuesday Blitz"]
[Site "Chess.com"]
[Date "2021.03.30"]
[Round "4"]
[White "Alexsur1981"]
[Black "sganerdene"]
[Result "1-0"]
[WhiteElo "2869"]
[BlackElo "2684"]
[TimeControl "180+1"]
[EndTime "10:40:16 PDT"]
[Termination "Alexsur1981 won by resignation"]

1. e4 {[%clk 0:03:00.9]} 1... c5 {[%clk 0:03:00]} 2. Nc3 {[%clk 0:03:00.7]} 2...
Nc6 {[%clk 0:02:59.4]} 3. Bb5 {[%clk 0:03:00.7]} 3... Nd4 {[%clk 0:02:58.7]} 4.
Nf3 {[%clk 0:03:00.8]} 4... g6 {[%clk 0:02:54.4]} 5. Nxd4 {[%clk 0:03:00]} 5...
cxd4 {[%clk 0:02:54.2]} 6. Ne2 {[%clk 0:03:00.9]} 6... Bg7 {[%clk 0:02:54.6]} 7.
c3 {[%clk 0:03:01.1]} 7... Qb6 {[%clk 0:02:46.8]} 8. Ba4 {[%clk 0:03:00]} 8...
dxc3 {[%clk 0:02:25.8]} 9. bxc3 {[%clk 0:03:00.9]} 9... Nf6 {[%clk 0:02:21.8]}
10. f3 {[%clk 0:03:00.6]} 10... O-O {[%clk 0:02:20.8]} 11. d4 {[%clk 0:03:00.7]}
11... d6 {[%clk 0:02:18.4]} 12. O-O {[%clk 0:02:54.8]} 12... Be6 {[%clk
0:02:18.3]} 13. Bc2 {[%clk 0:02:53.3]} 13... Rac8 {[%clk 0:02:15.9]} 14. Bd3
{[%clk 0:02:48.1]} 14... Bc4 {[%clk 0:02:13.6]} 15. a4 {[%clk 0:02:45.5]} 15...
Qa6 {[%clk 0:02:12.1]} 16. Bxc4 {[%clk 0:02:44.9]} 16... Rxc4 {[%clk 0:02:11]}
17. a5 {[%clk 0:02:41.6]} 17... Rfc8 {[%clk 0:02:10.4]} 18. Qd3 {[%clk 0:02:39]}
18... Nd7 {[%clk 0:02:04.5]} 19. Bd2 {[%clk 0:02:37.7]} 19... e5 {[%clk
0:01:50.5]} 20. Rfd1 {[%clk 0:02:31.6]} 20... Nf8 {[%clk 0:01:45.7]} 21. Be3
{[%clk 0:02:21.7]} 21... exd4 {[%clk 0:01:35]} 22. cxd4 {[%clk 0:02:16.3]} 22...
Ne6 {[%clk 0:01:34.9]} 23. Ra3 {[%clk 0:01:59.7]} 23... Rc2 {[%clk 0:01:31.7]}
24. Qxa6 {[%clk 0:01:58.1]} 24... bxa6 {[%clk 0:01:32.6]} 25. Kf1 {[%clk
0:01:56.4]} 25... Nc7 {[%clk 0:01:32.4]} 26. Rc3 {[%clk 0:01:48]} 26... Nb5
{[%clk 0:01:31.1]} 27. Rxc8+ {[%clk 0:01:47.4]} 27... Rxc8 {[%clk 0:01:31.2]}
28. f4 {[%clk 0:01:37.3]} 28... Rc4 {[%clk 0:01:26.5]} 29. e5 {[%clk 0:01:37.4]}
29... Ra4 {[%clk 0:01:23.6]} 30. Rc1 {[%clk 0:01:34.4]} 30... h5 {[%clk
0:01:09.8]} 31. Rc8+ {[%clk 0:01:27.4]} 31... Kh7 {[%clk 0:01:09.7]} 32. Rd8
{[%clk 0:01:25.6]} 32... dxe5 {[%clk 0:01:02.4]} 33. dxe5 {[%clk 0:01:24.6]}
33... Rxa5 {[%clk 0:01:01.9]} 34. Nd4 {[%clk 0:01:20.4]} 34... Ra1+ {[%clk
0:00:55.3]} 35. Kf2 {[%clk 0:01:19.5]} 35... Ra2+ {[%clk 0:00:50.5]} 36. Kf3
{[%clk 0:01:16.4]} 36... Ra3 {[%clk 0:00:42.4]} 37. Rd7 {[%clk 0:01:11.8]} 37...
Kg8 {[%clk 0:00:37.6]} 38. Rd8+ {[%clk 0:01:11.4]} 38... Kh7 {[%clk 0:00:37.1]}
39. Rd7 {[%clk 0:01:11.3]} 39... Nxd4+ {[%clk 0:00:28.4]} 40. Rxd4 {[%clk
0:01:10.5]} 40... g5 {[%clk 0:00:28.9]} 41. g3 {[%clk 0:01:08.6]} 41... Kg6
{[%clk 0:00:23]} 42. Rd7 {[%clk 0:00:57]} 42... Bf8 {[%clk 0:00:20.3]} 43. Ke4
{[%clk 0:00:53.4]} 43... Ra4+ {[%clk 0:00:20.7]} 44. Bd4 {[%clk 0:00:45.4]}
44... gxf4 {[%clk 0:00:20.6]} 45. gxf4 {[%clk 0:00:41.1]} 45... Bc5 {[%clk
0:00:20.6]} 46. f5+ {[%clk 0:00:40.6]} 46... Kg5 {[%clk 0:00:20.8]} 47. f6
{[%clk 0:00:40.7]} 47... Rxd4+ {[%clk 0:00:16.2]} 48. Rxd4 {[%clk 0:00:41.6]}
48... Bxd4 {[%clk 0:00:16.1]} 49. Kxd4 {[%clk 0:00:42.5]} 49... Kf5 {[%clk
0:00:16.6]} 50. Kd5 {[%clk 0:00:43]} 50... a5 {[%clk 0:00:16.5]} 51. Kd6 {[%clk
0:00:43.6]} 51... a4 {[%clk 0:00:17]} 52. e6 {[%clk 0:00:44.2]} 52... a3 {[%clk
0:00:15.6]} 53. exf7 {[%clk 0:00:43.6]} 53... a2 {[%clk 0:00:16]} 54. f8=Q
{[%clk 0:00:43.8]} 54... a1=Q {[%clk 0:00:16.4]} 55. Qc8+ {[%clk 0:00:43.8]}
55... Kg6 {[%clk 0:00:15.6]} 56. Qg8+ {[%clk 0:00:43.2]} 56... Kf5 {[%clk
0:00:15.9]} 57. f7 {[%clk 0:00:42.8]} 57... Qa3+ {[%clk 0:00:15.3]} 58. Kd7
{[%clk 0:00:41.7]} 58... Qa4+ {[%clk 0:00:15.7]} 59. Kd8 {[%clk 0:00:38.7]}
59... Qd4+ {[%clk 0:00:14.9]} 60. Ke8 {[%clk 0:00:36.2]} 60... Qe5+ {[%clk
0:00:14.9]} 61. Kf8 {[%clk 0:00:34.4]} 61... Qf6 {[%clk 0:00:10.5]} 62. Qh7+
{[%clk 0:00:29.9]} 62... Ke6 {[%clk 0:00:10.1]} 63. Kg8 {[%clk 0:00:28.2]} 63...
Qg5+ {[%clk 0:00:07.8]} 64. Qg7 {[%clk 0:00:28.4]} 1-0

[Event "*** Titled Tuesday Blitz"]
[Site "Chess.com"]
[Date "2021.03.30"]
[Round "4"]
[White "gilbert_gm"]
[Black "moro182"]
[Result "1-0"]
[WhiteElo "2569"]
[BlackElo "2719"]
[TimeControl "180+1"]
[EndTime "10:40:18 PDT"]
[Termination "gilbert_gm won by resignation"]

1. d4 {[%clk 0:02:37.3]} 1... g6 {[%clk 0:03:00.9]} 2. c4 {[%clk 0:02:33.4]}
2... Bg7 {[%clk 0:03:01.2]} 3. Nc3 {[%clk 0:02:33.3]} 3... d6 {[%clk 0:03:01.7]}
4. e4 {[%clk 0:02:33.8]} 4... c5 {[%clk 0:03:01.7]} 5. dxc5 {[%clk 0:02:33.1]}
5... Bxc3+ {[%clk 0:03:00.6]} 6. bxc3 {[%clk 0:02:34]} 6... dxc5 {[%clk
0:03:01.3]} 7. Qxd8+ {[%clk 0:02:33.3]} 7... Kxd8 {[%clk 0:03:02.2]} 8. Nf3
{[%clk 0:02:29.1]} 8... Nc6 {[%clk 0:03:00.5]} 9. Bf4 {[%clk 0:02:25.4]} 9... f6
{[%clk 0:02:56.7]} 10. O-O-O+ {[%clk 0:02:22.2]} 10... Ke8 {[%clk 0:02:51.7]}
11. e5 {[%clk 0:02:07]} 11... g5 {[%clk 0:01:59.6]} 12. Bg3 {[%clk 0:01:54]}
12... Be6 {[%clk 0:01:40.3]} 13. exf6 {[%clk 0:01:47.6]} 13... exf6 {[%clk
0:01:41.2]} 14. Bd3 {[%clk 0:01:38.2]} 14... Kf7 {[%clk 0:01:37]} 15. Rhe1
{[%clk 0:01:29.6]} 15... Nge7 {[%clk 0:01:33.4]} 16. Nd2 {[%clk 0:01:26]} 16...
b6 {[%clk 0:01:17.4]} 17. Ne4 {[%clk 0:01:05.6]} 17... Nf5 {[%clk 0:01:16.6]}
18. Nd6+ {[%clk 0:00:42.3]} 18... Nxd6 {[%clk 0:01:14.7]} 19. Bxd6 {[%clk
0:00:43.2]} 19... Rad8 {[%clk 0:01:12.3]} 20. Bc7 {[%clk 0:00:24.8]} 20... Rc8
{[%clk 0:00:56.7]} 21. Bg3 {[%clk 0:00:21.6]} 21... Na5 {[%clk 0:00:53.2]} 22.
Rxe6 {[%clk 0:00:13.1]} 22... Kxe6 {[%clk 0:00:49.4]} 23. Be4 {[%clk 0:00:13]}
23... Rcd8 {[%clk 0:00:36.1]} 24. Bd5+ {[%clk 0:00:12.4]} 24... Rxd5 {[%clk
0:00:35.3]} 25. cxd5+ {[%clk 0:00:13.3]} 25... Kd7 {[%clk 0:00:35]} 26. Kc2
{[%clk 0:00:12]} 26... Re8 {[%clk 0:00:34.2]} 27. Kd3 {[%clk 0:00:11.8]} 27...
Nb7 {[%clk 0:00:23.8]} 28. c4 {[%clk 0:00:11.8]} 28... f5 {[%clk 0:00:21.5]} 29.
h4 {[%clk 0:00:08.6]} 29... f4 {[%clk 0:00:19.6]} 30. Bh2 {[%clk 0:00:09.2]}
30... h6 {[%clk 0:00:20]} 31. hxg5 {[%clk 0:00:09.5]} 31... hxg5 {[%clk
0:00:20.9]} 32. g3 {[%clk 0:00:10]} 32... f3 {[%clk 0:00:19.9]} 33. g4 {[%clk
0:00:08.7]} 33... Na5 {[%clk 0:00:15]} 34. Bg3 {[%clk 0:00:06.4]} 34... Re2
{[%clk 0:00:13.9]} 35. Rh1 {[%clk 0:00:06.9]} 35... Rxa2 {[%clk 0:00:13.3]} 36.
Rh7+ {[%clk 0:00:07.1]} 36... Ke8 {[%clk 0:00:13.4]} 37. d6 {[%clk 0:00:05.9]}
37... Ra1 {[%clk 0:00:07.7]} 38. Be5 {[%clk 0:00:05.3]} 38... Rd1+ {[%clk
0:00:06.5]} 39. Kc2 {[%clk 0:00:04.8]} 39... Rxd6 {[%clk 0:00:03.2]} 40. Bxd6
{[%clk 0:00:05]} 40... Nxc4 {[%clk 0:00:04.1]} 41. Bg3 {[%clk 0:00:04.7]} 41...
a5 {[%clk 0:00:03.5]} 42. Kd3 {[%clk 0:00:05.1]} 42... b5 {[%clk 0:00:03.8]} 43.
Ra7 {[%clk 0:00:04.5]} 43... a4 {[%clk 0:00:03.8]} 44. Rb7 {[%clk 0:00:04.8]}
44... a3 {[%clk 0:00:04]} 45. Rxb5 {[%clk 0:00:02.7]} 45... a2 {[%clk
0:00:04.3]} 46. Rb8+ {[%clk 0:00:03]} 46... Kd7 {[%clk 0:00:04.8]} 47. Ra8
{[%clk 0:00:03.9]} 47... Nb2+ {[%clk 0:00:05]} 48. Kc2 {[%clk 0:00:04.4]} 48...
Nc4 {[%clk 0:00:04.2]} 49. Rxa2 {[%clk 0:00:04.9]} 49... Ke6 {[%clk 0:00:04.6]}
50. Ra6+ {[%clk 0:00:05.4]} 50... Kd5 {[%clk 0:00:04.8]} 51. Kc3 {[%clk
0:00:06.3]} 51... Ne5 {[%clk 0:00:01.7]} 52. Bxe5 {[%clk 0:00:06.5]} 52... Kxe5
{[%clk 0:00:02.6]} 53. Ra4 {[%clk 0:00:06.9]} 53... Kd5 {[%clk 0:00:02.4]} 54.
Rc4 {[%clk 0:00:07.8]} 54... Ke5 {[%clk 0:00:02.7]} 55. Kd3 {[%clk 0:00:08.4]}
55... Kd5 {[%clk 0:00:02.6]} 56. Kc3 {[%clk 0:00:08.6]} 56... Ke5 {[%clk
0:00:02.6]} 57. Rxc5+ {[%clk 0:00:09]} 57... Kf4 {[%clk 0:00:03.5]} 58. Rc4+
{[%clk 0:00:09.9]} 1-0

[Event "*** Titled Tuesday Blitz"]
[Site "Chess.com"]
[Date "2021.03.30"]
[Round "4"]
[White "BvsN"]
[Black "RamyresCoelho"]
[Result "1-0"]
[WhiteElo "2392"]
[BlackElo "2166"]
[TimeControl "180+1"]
[EndTime "10:40:20 PDT"]
[Termination "BvsN won by resignation"]

1. c4 {[%clk 0:03:00.9]} 1... Nf6 {[%clk 0:02:59.6]} 2. Nc3 {[%clk 0:03:00.8]}
2... g6 {[%clk 0:02:59.7]} 3. e4 {[%clk 0:03:00.6]} 3... Bg7 {[%clk 0:03:00.6]}
4. d4 {[%clk 0:03:00.9]} 4... d6 {[%clk 0:03:00.1]} 5. Nge2 {[%clk 0:03:00.7]}
5... e5 {[%clk 0:03:00.3]} 6. dxe5 {[%clk 0:02:59]} 6... dxe5 {[%clk 0:03:01.2]}
7. Qxd8+ {[%clk 0:02:59.3]} 7... Kxd8 {[%clk 0:03:02.1]} 8. Bg5 {[%clk
0:02:56.8]} 8... c6 {[%clk 0:03:00.9]} 9. O-O-O+ {[%clk 0:02:55.5]} 9... Kc7
{[%clk 0:02:56.7]} 10. f4 {[%clk 0:02:55.9]} 10... Nbd7 {[%clk 0:02:52.7]} 11.
fxe5 {[%clk 0:02:34]} 11... Nxe5 {[%clk 0:02:53.6]} 12. Bf4 {[%clk 0:02:26.5]}
12... Nh5 {[%clk 0:02:47.1]} 13. Kc2 {[%clk 0:02:05.8]} 13... Nxf4 {[%clk
0:02:42.4]} 14. Nxf4 {[%clk 0:02:05.7]} 14... Ng4 {[%clk 0:02:35.1]} 15. Rd2
{[%clk 0:01:54.2]} 15... g5 {[%clk 0:01:59.4]} 16. Nd3 {[%clk 0:01:44]} 16...
Be6 {[%clk 0:01:53.8]} 17. Nc5 {[%clk 0:01:34.9]} 17... Ne3+ {[%clk 0:01:49.3]}
18. Kb1 {[%clk 0:01:31.5]} 18... Bxc4 {[%clk 0:01:38.9]} 19. Bxc4 {[%clk
0:01:26.8]} 19... Nxc4 {[%clk 0:01:39.8]} 20. Rd7+ {[%clk 0:01:26.6]} 20... Kb6
{[%clk 0:01:39.3]} 21. N3a4+ {[%clk 0:01:10.9]} 21... Kb5 {[%clk 0:01:33.9]} 22.
Rxb7+ {[%clk 0:01:06.7]} 22... Nb6 {[%clk 0:01:34.2]} 23. b3 {[%clk 0:00:51.9]}
23... Bd4 {[%clk 0:01:27.3]} 24. Rc1 {[%clk 0:00:39]} 24... Rab8 {[%clk
0:01:12.7]} 25. Rxa7 {[%clk 0:00:30.1]} 25... Nxa4 {[%clk 0:01:04.8]} 26. bxa4+
{[%clk 0:00:19.7]} 26... Kb6 {[%clk 0:01:01.5]} 27. Ra6+ {[%clk 0:00:11.9]}
27... Kc7+ {[%clk 0:01:00.5]} 28. Nb3 {[%clk 0:00:12.2]} 28... c5 {[%clk
0:00:51.8]} 29. Kc2 {[%clk 0:00:11.5]} 29... Rhe8 {[%clk 0:00:45.5]} 30. Kd3
{[%clk 0:00:09.8]} 30... Kb7 {[%clk 0:00:43]} 31. Rh6 {[%clk 0:00:07.2]} 31...
Rbc8 {[%clk 0:00:36.6]} 32. Nxd4 {[%clk 0:00:06.4]} 32... cxd4 {[%clk
0:00:36.2]} 33. Rxc8 {[%clk 0:00:06.8]} 33... Rxc8 {[%clk 0:00:36.9]} 34. Rxh7
{[%clk 0:00:07.6]} 34... Rc7 {[%clk 0:00:34.9]} 35. Rg7 {[%clk 0:00:07.5]} 35...
Rc3+ {[%clk 0:00:32.3]} 36. Kxd4 {[%clk 0:00:07.6]} 36... Ra3 {[%clk 0:00:32.5]}
37. Rxg5 {[%clk 0:00:07.7]} 37... Rxa4+ {[%clk 0:00:32.5]} 38. Ke5 {[%clk
0:00:06.9]} 38... Rxa2 {[%clk 0:00:33.4]} 39. h4 {[%clk 0:00:06.6]} 39... Ra6
{[%clk 0:00:33]} 40. Kf5 {[%clk 0:00:06.6]} 40... Rh6 {[%clk 0:00:31]} 41. h5
{[%clk 0:00:06.5]} 41... Ra6 {[%clk 0:00:29.1]} 42. g4 {[%clk 0:00:06.5]} 42...
Re6 {[%clk 0:00:27.6]} 43. Rg7 {[%clk 0:00:05.9]} 43... Re7 {[%clk 0:00:27.7]}
44. g5 {[%clk 0:00:05.2]} 44... Kc6 {[%clk 0:00:26.1]} 45. g6 {[%clk 0:00:05.6]}
45... fxg6+ {[%clk 0:00:25.3]} 46. Kxg6 {[%clk 0:00:04.9]} 46... Rxe4 {[%clk
0:00:25.6]} 47. h6 {[%clk 0:00:05]} 47... Rg4+ {[%clk 0:00:26.1]} 48. Kf5 {[%clk
0:00:04.5]} 48... Rh4 {[%clk 0:00:25.8]} 49. Kg6 {[%clk 0:00:04.3]} 49... Rg4+
{[%clk 0:00:25.7]} 50. Kh7 {[%clk 0:00:04.7]} 50... Rh4 {[%clk 0:00:25.6]} 51.
Rg6+ {[%clk 0:00:05.2]} 51... Kd7 {[%clk 0:00:25.2]} 52. Kg7 {[%clk 0:00:05.8]}
52... Re4 {[%clk 0:00:20.2]} 53. h7 {[%clk 0:00:05.9]} 53... Re7+ {[%clk
0:00:20.1]} 54. Kh6 {[%clk 0:00:06.2]} 54... Re8 {[%clk 0:00:19.5]} 55. Rg8
{[%clk 0:00:06.5]} 55... Re6+ {[%clk 0:00:19.7]} 56. Kg5 {[%clk 0:00:06.8]}
56... Re5+ {[%clk 0:00:18.6]} 57. Kf4 {[%clk 0:00:07.2]} 57... Re7 {[%clk
0:00:17.2]} 58. h8=Q {[%clk 0:00:07.3]} 58... Rf7+ {[%clk 0:00:18.1]} 59. Ke4
{[%clk 0:00:07.1]} 59... Re7+ {[%clk 0:00:17.9]} 60. Kd4 {[%clk 0:00:07.7]}
60... Rf7 {[%clk 0:00:17.9]} 61. Rg7 {[%clk 0:00:08]} 61... Re7 {[%clk
0:00:18.8]} 62. Rxe7+ {[%clk 0:00:08]} 62... Kxe7 {[%clk 0:00:19.7]} 63. Qh6
{[%clk 0:00:08.5]} 63... Kf7 {[%clk 0:00:20]} 64. Ke5 {[%clk 0:00:08.7]} 64...
Ke7 {[%clk 0:00:20.9]} 65. Qg7+ {[%clk 0:00:09.1]} 65... Ke8 {[%clk 0:00:21.2]}
66. Ke6 {[%clk 0:00:09.3]} 1-0

[Event "*** Titled Tuesday Blitz"]
[Site "Chess.com"]
[Date "2021.03.30"]
[Round "4"]
[White "DKmirl"]
[Black "Loy_Konstantin"]
[Result "0-1"]
[WhiteElo "2036"]
[BlackElo "2316"]
[TimeControl "180+1"]
[EndTime "10:40:20 PDT"]
[Termination "Loy_Konstantin won by checkmate"]

1. d4 {[%clk 0:02:51.9]} 1... Nf6 {[%clk 0:02:59.8]} 2. c4 {[%clk 0:02:51.2]}
2... c5 {[%clk 0:03:00.3]} 3. Nf3 {[%clk 0:02:51.2]} 3... cxd4 {[%clk
0:03:00.2]} 4. Nxd4 {[%clk 0:02:50.4]} 4... e5 {[%clk 0:03:00.8]} 5. Nf3 {[%clk
0:02:42.3]} 5... Nc6 {[%clk 0:02:58.7]} 6. Nc3 {[%clk 0:02:40.2]} 6... Bb4
{[%clk 0:02:59.2]} 7. Bd2 {[%clk 0:02:38.2]} 7... O-O {[%clk 0:02:50.4]} 8. g3
{[%clk 0:02:36.1]} 8... Re8 {[%clk 0:02:33.7]} 9. a3 {[%clk 0:02:35.5]} 9...
Bxc3 {[%clk 0:02:33.2]} 10. Bxc3 {[%clk 0:02:35.1]} 10... d5 {[%clk 0:02:33.8]}
11. cxd5 {[%clk 0:02:26.2]} 11... Nxd5 {[%clk 0:02:26.4]} 12. Bg2 {[%clk
0:02:25.2]} 12... Nxc3 {[%clk 0:02:25.7]} 13. bxc3 {[%clk 0:02:25.8]} 13... Qa5
{[%clk 0:02:22.7]} 14. Qc2 {[%clk 0:02:22.2]} 14... Bf5 {[%clk 0:02:14.2]} 15.
Qb2 {[%clk 0:02:04.4]} 15... Nd4 {[%clk 0:01:26.3]} 16. O-O {[%clk 0:01:45.3]}
16... Qxc3 {[%clk 0:01:24.6]} 17. Qxb7 {[%clk 0:01:17.9]} 17... Nxe2+ {[%clk
0:01:24.4]} 18. Kh1 {[%clk 0:01:17.3]} 18... Qc8 {[%clk 0:00:24.9]} 19. Qxc8
{[%clk 0:01:09.7]} 19... Raxc8 {[%clk 0:00:24.3]} 20. Rfe1 {[%clk 0:00:43.9]}
20... Nd4 {[%clk 0:00:24.5]} 21. Rxe5 {[%clk 0:00:30.5]} 21... Rxe5 {[%clk
0:00:24.2]} 22. Nxe5 {[%clk 0:00:29.5]} 22... Nc2 {[%clk 0:00:24.7]} 23. Rc1
{[%clk 0:00:27.3]} 23... Nxa3 {[%clk 0:00:22.1]} 24. Rxc8+ {[%clk 0:00:27.3]}
24... Bxc8 {[%clk 0:00:23]} 25. Be4 {[%clk 0:00:25.6]} 25... Be6 {[%clk
0:00:17.7]} 26. Nc6 {[%clk 0:00:24.8]} 26... a5 {[%clk 0:00:14]} 27. Nxa5 {[%clk
0:00:22]} 27... h6 {[%clk 0:00:11.7]} 28. Nc6 {[%clk 0:00:21.6]} 28... Nc4
{[%clk 0:00:11.4]} 29. Ne7+ {[%clk 0:00:19.5]} 29... Kf8 {[%clk 0:00:11.1]} 30.
Nf5 {[%clk 0:00:17.9]} 30... Bxf5 {[%clk 0:00:09.7]} 31. Bxf5 {[%clk 0:00:18.1]}
31... Ke7 {[%clk 0:00:09.4]} 32. Kg2 {[%clk 0:00:17.6]} 32... Kf6 {[%clk
0:00:09.3]} 33. Bd3 {[%clk 0:00:17.5]} 33... Ne5 {[%clk 0:00:09.1]} 34. Bf1
{[%clk 0:00:17.5]} 34... Nc6 {[%clk 0:00:09]} 35. Bb5 {[%clk 0:00:17.2]} 35...
Nd4 {[%clk 0:00:08.6]} 36. Bf1 {[%clk 0:00:17.8]} 36... Ke5 {[%clk 0:00:08.7]}
37. f4+ {[%clk 0:00:17.4]} 37... Kd6 {[%clk 0:00:08.2]} 38. Bc4 {[%clk
0:00:17.8]} 38... f6 {[%clk 0:00:08.2]} 39. Kf2 {[%clk 0:00:16.5]} 39... Kc5
{[%clk 0:00:08.5]} 40. Be2 {[%clk 0:00:16.6]} 40... Nf5 {[%clk 0:00:08.8]} 41.
Bg4 {[%clk 0:00:16.2]} 41... Nd6 {[%clk 0:00:07.8]} 42. h4 {[%clk 0:00:15.6]}
42... Kd4 {[%clk 0:00:07.7]} 43. Bf3 {[%clk 0:00:15.4]} 43... Ne4+ {[%clk
0:00:07.1]} 44. Bxe4 {[%clk 0:00:15]} 44... Kxe4 {[%clk 0:00:08]} 45. Ke2 {[%clk
0:00:14.1]} 45... h5 {[%clk 0:00:06]} 46. Kf2 {[%clk 0:00:13.5]} 46... Kd3
{[%clk 0:00:06.1]} 47. Kf3 {[%clk 0:00:13.4]} 47... f5 {[%clk 0:00:06.1]} 48.
Kf2 {[%clk 0:00:12.7]} 48... Kd2 {[%clk 0:00:06.6]} 49. Kf3 {[%clk 0:00:11.6]}
49... Ke1 {[%clk 0:00:07]} 50. Kg2 {[%clk 0:00:10.7]} 50... Ke2 {[%clk
0:00:07.1]} 51. Kg1 {[%clk 0:00:10.2]} 51... Kf3 {[%clk 0:00:06.8]} 52. Kh2
{[%clk 0:00:10.4]} 52... Kf2 {[%clk 0:00:07.2]} 53. Kh3 {[%clk 0:00:10.9]} 53...
Kg1 {[%clk 0:00:07.5]} 54. g4 {[%clk 0:00:10.4]} 54... hxg4+ {[%clk 0:00:07.7]}
55. Kg3 {[%clk 0:00:11.1]} 55... Kf1 {[%clk 0:00:07.3]} 56. h5 {[%clk
0:00:11.1]} 56... Ke2 {[%clk 0:00:07.1]} 57. Kh4 {[%clk 0:00:10.2]} 57... Kf3
{[%clk 0:00:06.6]} 58. h6 {[%clk 0:00:10.7]} 58... gxh6 {[%clk 0:00:06.3]} 59.
Kh5 {[%clk 0:00:11]} 59... Kxf4 {[%clk 0:00:06.8]} 60. Kxh6 {[%clk 0:00:11.8]}
60... g3 {[%clk 0:00:07.7]} 61. Kh5 {[%clk 0:00:12.4]} 61... g2 {[%clk
0:00:08.6]} 62. Kh4 {[%clk 0:00:13]} 62... g1=Q {[%clk 0:00:09.1]} 63. Kh5
{[%clk 0:00:13.2]} 63... Qg5# {[%clk 0:00:08.6]} 0-1